[Event "IV Pullman Blitz 2022"]
[Site "Riga, Latvia"]
[Date "2022.02.20"]
[Round "2.3"]
[White "Maklakova, Nellija"]
[Black "Sveshnikov, Vladimir"]
[Result "0-1"]
[TimeControl "180+2"]
[BlackTitle "IM"]
[WhiteElo "1776"]
[BlackElo "2233"]

1. c4 {[%clk 00:03:03]} e6 {[%clk 00:03:02]} {[%emt 00:00:02]} 2. Nc3 {[%clk
00:03:03]} {[%emt 00:00:02]} d5 {[%clk 00:03:03]} {[%emt 00:00:01]} 3. e3
{[%clk 00:03:00]} {[%emt 00:00:05]} Nf6 {[%clk 00:03:04]} {[%emt 00:00:01]} 4.
Nf3 {[%clk 00:03:01]} {[%emt 00:00:01]} c6 {[%clk 00:02:58]} {[%emt 00:00:09]}
5. Be2 {[%clk 00:03:02]} {[%emt 00:00:01]} Bd6 {[%clk 00:02:58]} {[%emt
00:00:02]} 6. O-O {[%clk 00:03:02]} {[%emt 00:00:01]} O-O {[%clk 00:02:58]}
{[%emt 00:00:02]} 7. d4 {[%clk 00:03:03]} {[%emt 00:00:01]} Nbd7 {[%clk
00:02:52]} {[%emt 00:00:08]} 8. c5 {[%clk 00:02:59]} {[%emt 00:00:06]} Bc7
{[%clk 00:02:53]} {[%emt 00:00:01]} 9. b4 {[%clk 00:03:00]} a6 {[%clk
00:02:40]} {[%emt 00:00:15]} 10. a4 {[%clk 00:03:01]} {[%emt 00:00:01]} e5
{[%clk 00:02:41]} {[%emt 00:00:02]} 11. Bb2 {[%clk 00:02:57]} {[%emt 00:00:06]}
e4 {[%clk 00:02:41]} {[%emt 00:00:01]} 12. Nd2 {[%clk 00:02:56]} {[%emt
00:00:04]} Re8 {[%clk 00:02:42]} {[%emt 00:00:01]} 13. b5 {[%clk 00:02:55]}
{[%emt 00:00:03]} axb5 {[%clk 00:02:41]} {[%emt 00:00:03]} 14. axb5 {[%clk
00:02:56]} Rxa1 {[%clk 00:02:41]} {[%emt 00:00:01]} 15. Qxa1 {[%clk 00:02:56]}
{[%emt 00:00:02]} h5 {[%clk 00:02:25]} {[%emt 00:00:18]} 16. bxc6 {[%clk
00:02:43]} {[%emt 00:00:15]} bxc6 {[%clk 00:02:26]} {[%emt 00:00:01]} 17. Qa8
{[%clk 00:02:27]} {[%emt 00:00:19]} Nb8 {[%clk 00:02:04]} {[%emt 00:00:24]} 18.
Rb1 {[%clk 00:02:00]} {[%emt 00:00:28]} Ng4 {[%clk 00:01:27]} {[%emt 00:00:39]}
19. Nf1 {[%clk 00:01:41]} {[%emt 00:00:21]} Qh4 {[%clk 00:01:22]} {[%emt
00:00:07]} 20. g3 {[%clk 00:00:57]} {[%emt 00:00:47]} Qf6 {[%clk 00:01:17]}
{[%emt 00:00:07]} 21. Bc1 {[%emt 00:00:05]} Qxf2+ {[%clk 00:01:16]} {[%emt
00:00:02]} 22. Kh1 {[%clk 00:00:54]} {[%emt 00:00:03]} Nxh2 {[%clk 00:00:34]}
{[%emt 00:00:44]} 23. Nxh2 {[%clk 00:00:16]} {[%emt 00:00:40]} Bxg3 {[%clk
00:00:19]} {[%emt 00:00:17]} 24. Nf1 {[%clk 00:00:16]} {[%emt 00:00:02]} Bh3
{[%clk 00:00:20]} {[%emt 00:00:01]} 0-1

[Event "IV Pullman Blitz 2022"]
[Site "Riga, Latvia"]
[Date "2022.02.20"]
[Round "2.4"]
[White "Antoms, Guntars"]
[Black "Vingris, Mikelis"]
[Result "1-0"]
[TimeControl "180+2"]
[WhiteTitle "IM"]
[WhiteElo "2231"]
[BlackElo "1811"]

1. Nf3 {[%clk 00:03:03]} c5 {[%clk 00:03:03]} {[%emt 00:00:01]} 2. g3 {[%clk
00:03:02]} {[%emt 00:00:02]} g6 {[%clk 00:03:03]} {[%emt 00:00:03]} 3. Bg2
{[%clk 00:03:02]} {[%emt 00:00:02]} Bg7 {[%clk 00:03:04]} {[%emt 00:00:01]} 4.
O-O {[%clk 00:03:02]} {[%emt 00:00:02]} Nc6 {[%clk 00:03:02]} {[%emt 00:00:05]}
5. d3 {[%clk 00:03:02]} {[%emt 00:00:02]} e5 {[%clk 00:02:59]} {[%emt
00:00:05]} 6. Nc3 {[%clk 00:02:51]} {[%emt 00:00:12]} d6 {[%clk 00:02:58]}
{[%emt 00:00:03]} 7. a3 {[%clk 00:02:51]} {[%emt 00:00:02]} Be6 {[%clk
00:02:57]} {[%emt 00:00:03]} 8. Rb1 {[%clk 00:02:51]} {[%emt 00:00:02]} Nge7
{[%clk 00:02:44]} {[%emt 00:00:15]} 9. Ng5 {[%clk 00:02:45]} {[%emt 00:00:07]}
Bd7 {[%clk 00:02:10]} {[%emt 00:00:36]} 10. b4 {[%clk 00:02:44]} {[%emt
00:00:04]} h6 {[%clk 00:02:05]} {[%emt 00:00:07]} 11. Nge4 {[%clk 00:02:21]}
{[%emt 00:00:24]} cxb4 {[%clk 00:01:08]} {[%emt 00:01:00]} 12. Nxd6+ {[%clk
00:02:10]} {[%emt 00:00:13]} Kf8 {[%clk 00:01:09]} {[%emt 00:00:01]} 13. axb4
{[%clk 00:02:03]} {[%emt 00:00:09]} Rb8 {[%clk 00:00:53]} {[%emt 00:00:18]} 14.
b5 {[%clk 00:01:54]} {[%emt 00:00:11]} Nd4 {[%clk 00:00:43]} {[%emt 00:00:12]}
15. Ba3 {[%clk 00:01:42]} {[%emt 00:00:14]} b6 {[%clk 00:00:18]} {[%emt
00:00:27]} 16. Nd5 {[%clk 00:01:22]} {[%emt 00:00:21]} Kg8 {[%clk 00:00:06]}
{[%emt 00:00:15]} 17. Nb7 {[%clk 00:00:57]} {[%emt 00:00:27]} Rxb7 {[%clk
00:00:05]} {[%emt 00:00:03]} 18. Nxe7+ {[%clk 00:00:57]} {[%emt 00:00:02]} Kh7
{[%clk 00:00:05]} {[%emt 00:00:02]} 19. Bxb7 {[%clk 00:00:57]} {[%emt
00:00:02]} Nxb5 {[%clk 00:00:04]} {[%emt 00:00:04]} 20. Bb4 {[%clk 00:00:53]}
{[%emt 00:00:06]} a5 {[%clk 00:00:04]} {[%emt 00:00:02]} 21. Nc6 {[%clk
00:00:47]} {[%emt 00:00:08]} Bxc6 {[%clk 00:00:05]} {[%emt 00:00:02]} 22. Bxc6
{[%clk 00:00:47]} {[%emt 00:00:01]} Nd4 {[%clk 00:00:05]} {[%emt 00:00:01]} 23.
Bg2 {[%clk 00:00:27]} {[%emt 00:00:22]} axb4 {[%clk 00:00:06]} {[%emt
00:00:02]} 24. Rxb4 {[%clk 00:00:28]} {[%emt 00:00:01]} Qc7 {[%clk 00:00:05]}
{[%emt 00:00:03]} 25. c4 {[%clk 00:00:26]} {[%emt 00:00:03]} f5 {[%clk
00:00:04]} {[%emt 00:00:04]} 26. e3 {[%clk 00:00:24]} {[%emt 00:00:03]} Ne6
{[%clk 00:00:04]} {[%emt 00:00:02]} 27. Qc2 {[%clk 00:00:18]} {[%emt 00:00:07]}
f4 {[%clk 00:00:04]} {[%emt 00:00:02]} 28. Rfb1 {[%clk 00:00:15]} {[%emt
00:00:05]} fxe3 {[%clk 00:00:03]} {[%emt 00:00:03]} 29. fxe3 {[%clk 00:00:16]}
Rb8 {[%clk 00:00:04]} {[%emt 00:00:01]} 30. Bd5 {[%clk 00:00:14]} {[%emt
00:00:04]} Ng5 {[%clk 00:00:03]} {[%emt 00:00:03]} 31. Qg2 {[%clk 00:00:13]}
{[%emt 00:00:03]} Qc5 {[%clk 00:00:03]} {[%emt 00:00:02]} 32. Kf2 {[%clk
00:00:10]} {[%emt 00:00:05]} Rf8+ {[%clk 00:00:04]} {[%emt 00:00:01]} 33. Ke2
{[%clk 00:00:12]} {[%emt 00:00:01]} Bf6 {[%clk 00:00:04]} {[%emt 00:00:03]} 34.
h4 {[%clk 00:00:12]} Nf7 {[%emt 00:00:03]} 35. Rxb6 {[%clk 00:00:11]} {[%emt
00:00:01]} Nd6 {[%clk 00:00:04]} {[%emt 00:00:03]} 36. Rc6 {[%clk 00:00:10]}
{[%emt 00:00:02]} Qa3 {[%clk 00:00:05]} {[%emt 00:00:01]} 37. Rd1 {[%clk
00:00:10]} {[%emt 00:00:02]} Rb8 {[%clk 00:00:04]} {[%emt 00:00:03]} 38. Rd2
{[%clk 00:00:08]} {[%emt 00:00:04]} Rb1 {[%clk 00:00:05]} {[%emt 00:00:02]} 39.
Qf3 {[%clk 00:00:06]} {[%emt 00:00:04]} Kg7 {[%clk 00:00:05]} {[%emt 00:00:01]}
40. Rc7+ {[%clk 00:00:06]} {[%emt 00:00:02]} Kh8 {[%clk 00:03:02]} {[%emt
00:00:05]} 41. Qxf6# 1-0

[Event "IV Pullman Blitz 2022"]
[Site "Riga, Latvia"]
[Date "2022.02.20"]
[Round "3.1"]
[White "Jazdanovs, Aleksandrs"]
[Black "Mustaps, Matiss"]
[Result "1/2-1/2"]
[TimeControl "180+2"]
[BlackTitle "FM"]
[WhiteElo "2027"]
[BlackElo "2261"]

1. e4 {[%clk 00:03:03]} c5 {[%clk 00:03:03]} {[%emt 00:00:01]} 2. Nf3 {[%emt
00:00:02]} Nc6 3. d4 {[%clk 00:03:04]} {[%emt 00:00:01]} cxd4 {[%clk 00:03:06]}
{[%emt 00:00:01]} 4. Nxd4 {[%clk 00:03:05]} g6 {[%clk 00:03:07]} 5. Nc3 {[%clk
00:03:07]} Bg7 {[%clk 00:03:05]} {[%emt 00:00:04]} 6. Be3 {[%clk 00:03:08]} Nf6
{[%clk 00:03:03]} {[%emt 00:00:05]} 7. Bc4 {[%clk 00:03:08]} {[%emt 00:00:01]}
O-O {[%clk 00:03:01]} {[%emt 00:00:04]} 8. Bb3 {[%clk 00:03:09]} Ng4 {[%clk
00:02:37]} {[%emt 00:00:28]} 9. Qxg4 {[%clk 00:03:07]} {[%emt 00:00:04]} Nxd4
{[%clk 00:02:38]} 10. Qd1 {[%clk 00:03:04]} {[%emt 00:00:05]} Nxb3 {[%clk
00:02:35]} {[%emt 00:00:05]} 11. axb3 {[%clk 00:03:02]} {[%emt 00:00:05]} a6
{[%clk 00:02:26]} {[%emt 00:00:11]} 12. Bd4 {[%clk 00:02:59]} {[%emt 00:00:04]}
d6 {[%clk 00:02:06]} {[%emt 00:00:22]} 13. Bxg7 {[%clk 00:02:56]} {[%emt
00:00:04]} Kxg7 {[%clk 00:02:07]} 14. O-O {[%clk 00:02:57]} {[%emt 00:00:01]}
Be6 {[%clk 00:02:04]} {[%emt 00:00:05]} 15. Qd4+ {[%clk 00:02:55]} {[%emt
00:00:04]} Kg8 {[%clk 00:01:57]} {[%emt 00:00:08]} 16. Nd5 {[%clk 00:02:55]}
{[%emt 00:00:02]} Bxd5 {[%clk 00:01:46]} {[%emt 00:00:13]} 1/2-1/2

[Event "IV Pullman Blitz 2022"]
[Site "Riga, Latvia"]
[Date "2022.02.20"]
[Round "3.2"]
[White "Sveshnikov, Vladimir"]
[Black "Gorozhankina, Julia"]
[Result "0-1"]
[TimeControl "180+2"]
[WhiteTitle "IM"]
[BlackTitle "WFM"]
[WhiteElo "2233"]
[BlackElo "2033"]

1. e4 {[%clk 00:03:02]} {[%emt 00:00:01]} c5 {[%clk 00:03:04]} {[%emt
00:00:01]} 2. c3 {[%clk 00:03:03]} Nf6 {[%clk 00:03:05]} {[%emt 00:00:01]} 3.
e5 {[%clk 00:03:04]} {[%emt 00:00:01]} Nd5 {[%clk 00:03:06]} 4. d4 {[%clk
00:03:04]} {[%emt 00:00:02]} cxd4 {[%clk 00:03:06]} {[%emt 00:00:02]} 5. Nf3
{[%clk 00:03:05]} d6 {[%clk 00:03:05]} {[%emt 00:00:03]} 6. exd6 {[%clk
00:02:48]} {[%emt 00:00:20]} Qxd6 {[%clk 00:03:06]} {[%emt 00:00:01]} 7. Na3
{[%clk 00:02:48]} {[%emt 00:00:01]} a6 {[%clk 00:02:59]} {[%emt 00:00:09]} 8.
Nc4 {[%clk 00:02:36]} {[%emt 00:00:14]} Qd8 {[%clk 00:02:03]} {[%emt 00:00:58]}
9. Nxd4 {[%clk 00:02:32]} {[%emt 00:00:05]} Nd7 {[%clk 00:01:35]} {[%emt
00:00:30]} 10. Be2 {[%clk 00:02:19]} {[%emt 00:00:14]} e6 {[%clk 00:01:10]}
{[%emt 00:00:27]} 11. O-O {[%clk 00:02:15]} {[%emt 00:00:06]} Be7 {[%clk
00:01:11]} {[%emt 00:00:01]} 12. Bf3 {[%clk 00:02:10]} {[%emt 00:00:06]} N7f6
{[%clk 00:01:08]} {[%emt 00:00:06]} 13. Ne5 {[%clk 00:02:04]} {[%emt 00:00:08]}
O-O {[%clk 00:01:07]} {[%emt 00:00:03]} 14. c4 {[%clk 00:02:01]} {[%emt
00:00:05]} Nb6 {[%clk 00:01:03]} {[%emt 00:00:07]} 15. Bf4 {[%clk 00:01:36]}
{[%emt 00:00:26]} Nbd7 {[%clk 00:00:49]} {[%emt 00:00:17]} 16. Qe2 {[%clk
00:01:21]} {[%emt 00:00:16]} Nxe5 {[%clk 00:00:49]} {[%emt 00:00:03]} 17. Bxe5
{[%clk 00:01:21]} {[%emt 00:00:01]} Bd6 {[%clk 00:00:37]} {[%emt 00:00:14]} 18.
Rfd1 {[%clk 00:01:14]} {[%emt 00:00:09]} Bxe5 {[%clk 00:00:37]} {[%emt
00:00:03]} 19. Qxe5 {[%clk 00:01:14]} Qe7 {[%clk 00:00:33]} {[%emt 00:00:06]}
20. Nf5 {[%clk 00:00:56]} {[%emt 00:00:20]} Qb4 {[%clk 00:00:30]} {[%emt
00:00:05]} 21. Nd6 {[%clk 00:00:44]} {[%emt 00:00:14]} Ra7 {[%clk 00:00:23]}
{[%emt 00:00:09]} 22. a3 {[%clk 00:00:39]} {[%emt 00:00:07]} Qb6 {[%clk
00:00:13]} {[%emt 00:00:11]} 23. c5 {[%clk 00:00:37]} {[%emt 00:00:04]} Qc7
{[%clk 00:00:13]} {[%emt 00:00:03]} 24. b4 {[%clk 00:00:34]} {[%emt 00:00:05]}
b6 {[%clk 00:00:13]} {[%emt 00:00:02]} 25. Rac1 {[%clk 00:00:34]} {[%emt
00:00:02]} bxc5 {[%clk 00:00:14]} {[%emt 00:00:02]} 26. Rxc5 {[%clk 00:00:33]}
{[%emt 00:00:02]} Qb8 {[%clk 00:00:12]} {[%emt 00:00:04]} 27. Qc3 {[%clk
00:00:16]} {[%emt 00:00:18]} Bd7 {[%clk 00:00:13]} {[%emt 00:00:02]} 28. h3
{[%clk 00:00:14]} {[%emt 00:00:05]} h6 {[%clk 00:00:08]} {[%emt 00:00:06]} 29.
Ne4 {[%clk 00:00:14]} {[%emt 00:00:02]} Nd5 {[%clk 00:00:07]} {[%emt 00:00:04]}
30. Qb2 {[%clk 00:00:12]} {[%emt 00:00:03]} Bb5 {[%clk 00:00:07]} {[%emt
00:00:03]} 31. Nc3 {[%clk 00:00:12]} {[%emt 00:00:02]} Nxc3 {[%clk 00:00:08]}
{[%emt 00:00:02]} 32. Qxc3 {[%clk 00:00:13]} Rd7 {[%clk 00:00:07]} {[%emt
00:00:03]} 33. Rxd7 {[%clk 00:00:13]} {[%emt 00:00:02]} Bxd7 {[%clk 00:00:08]}
{[%emt 00:00:01]} 34. Qd4 {[%clk 00:00:11]} {[%emt 00:00:03]} Bb5 {[%clk
00:00:09]} {[%emt 00:00:01]} 35. Qc3 {[%clk 00:00:10]} {[%emt 00:00:03]} Rd8
{[%clk 00:00:10]} {[%emt 00:00:01]} 36. g3 {[%clk 00:00:11]} {[%emt 00:00:02]}
Qd6 {[%clk 00:00:11]} {[%emt 00:00:01]} 37. Kg2 {[%clk 00:00:10]} {[%emt
00:00:03]} Qd3 {[%clk 00:00:11]} {[%emt 00:00:01]} 38. Rc8 {[%clk 00:00:05]}
{[%emt 00:00:06]} Qxc3 {[%clk 00:00:12]} {[%emt 00:00:03]} 39. Rxc3 {[%clk
00:00:06]} {[%emt 00:00:01]} g6 {[%clk 00:00:12]} {[%emt 00:00:02]} 40. h4
{[%clk 00:00:06]} {[%emt 00:00:01]} h5 {[%clk 00:00:13]} 41. Be4 {[%clk
00:00:05]} {[%emt 00:00:03]} Kg7 {[%clk 00:00:13]} {[%emt 00:00:03]} 42. Bc2
{[%clk 00:00:06]} {[%emt 00:00:01]} Rd7 {[%clk 00:00:13]} {[%emt 00:00:02]} 43.
a4 {[%clk 00:00:07]} Be2 {[%clk 00:00:14]} {[%emt 00:00:01]} 44. f3 {[%clk
00:00:04]} {[%emt 00:00:05]} Bd1 {[%clk 00:00:10]} {[%emt 00:00:06]} 45. Be4
{[%clk 00:00:03]} {[%emt 00:00:02]} Bxa4 {[%clk 00:00:09]} {[%emt 00:00:03]} 46.
Kf2 {[%clk 00:00:04]} {[%emt 00:00:02]} Bb5 {[%clk 00:00:11]} 47. Ke3 {[%clk
00:00:04]} {[%emt 00:00:01]} Rd6 {[%clk 00:00:11]} {[%emt 00:00:02]} 48. Rc7
{[%clk 00:00:03]} {[%emt 00:00:03]} Kf6 {[%clk 00:00:12]} {[%emt 00:00:01]} 49.
Ra7 {[%emt 00:00:03]} Rd7 {[%clk 00:00:12]} {[%emt 00:00:02]} 50. Ra8 {[%clk
00:00:04]} Rc7 {[%clk 00:00:13]} {[%emt 00:00:01]} 51. g4 {[%clk 00:00:06]}
Rc3+ {[%clk 00:00:14]} 52. Kd2 {[%clk 00:00:06]} Rb3 {[%clk 00:00:15]} {[%emt
00:00:02]} 53. g5+ {[%clk 00:00:07]} {[%emt 00:00:01]} Kg7 {[%clk 00:00:15]}
{[%emt 00:00:02]} 54. Ra7 {[%clk 00:00:06]} {[%emt 00:00:03]} Rxb4 {[%clk
00:00:16]} {[%emt 00:00:01]} 55. Kc3 {[%clk 00:00:06]} Rc4+ {[%clk 00:00:17]}
{[%emt 00:00:01]} 56. Kd2 {[%clk 00:00:07]} Rd4+ {[%clk 00:00:18]} {[%emt
00:00:02]} 57. Ke3 {[%clk 00:00:08]} Rd1 {[%clk 00:00:19]} {[%emt 00:00:01]} 58.
Kf4 {[%clk 00:00:06]} {[%emt 00:00:03]} Rh1 {[%clk 00:00:19]} {[%emt 00:00:02]}
59. Kg3 {[%clk 00:00:07]} {[%emt 00:00:01]} Rg1+ {[%clk 00:00:20]} {[%emt
00:00:01]} 60. Kf2 {[%clk 00:00:08]} {[%emt 00:00:01]} Ra1 {[%clk 00:00:20]}
{[%emt 00:00:01]} 61. Bb7 {[%clk 00:00:08]} {[%emt 00:00:03]} a5 {[%clk
00:00:19]} {[%emt 00:00:03]} 62. Bc8 {[%clk 00:00:09]} {[%emt 00:00:01]} Bc4
{[%clk 00:00:18]} {[%emt 00:00:03]} 63. Bd7 {[%clk 00:00:09]} {[%emt 00:00:02]}
e5 {[%clk 00:00:19]} {[%emt 00:00:02]} 64. Rc7 {[%clk 00:00:09]} {[%emt
00:00:02]} Bd5 {[%clk 00:00:19]} {[%emt 00:00:01]} 65. Rc5 {[%clk 00:00:09]}
{[%emt 00:00:02]} Ra2+ {[%clk 00:00:19]} {[%emt 00:00:02]} 66. Kg3 {[%clk
00:00:09]} {[%emt 00:00:01]} Bb3 {[%clk 00:00:19]} {[%emt 00:00:03]} 67. Rxe5
{[%clk 00:00:10]} {[%emt 00:00:02]} a4 {[%clk 00:00:20]} 68. Ra5 {[%clk
00:00:09]} {[%emt 00:00:03]} a3 {[%clk 00:00:19]} {[%emt 00:00:03]} 69. f4
{[%clk 00:00:10]} Ra1 {[%clk 00:00:20]} {[%emt 00:00:02]} 70. f5 {[%clk
00:00:11]} {[%emt 00:00:01]} gxf5 {[%clk 00:00:20]} {[%emt 00:00:01]} 71. Bxf5
{[%clk 00:00:10]} {[%emt 00:00:02]} a2 {[%clk 00:00:21]} {[%emt 00:00:02]} 72.
Kh2 {[%clk 00:00:09]} {[%emt 00:00:02]} Rf1 {[%clk 00:00:20]} {[%emt 00:00:03]}
73. Bd3 {[%clk 00:00:10]} {[%emt 00:00:01]} a1=Q {[%clk 00:00:19]} {[%emt
00:00:03]} 0-1

[Event "IV Pullman Blitz 2022"]
[Site "Riga, Latvia"]
[Date "2022.02.20"]
[Round "3.3"]
[White "Agafonov, Yuri Dr"]
[Black "Antoms, Guntars"]
[Result "0-1"]
[TimeControl "180+2"]
[BlackTitle "IM"]
[WhiteElo "2005"]
[BlackElo "2231"]

1. d4 {[%clk 00:03:03]} Nf6 {[%clk 00:03:02]} {[%emt 00:00:02]} 2. Nf3 {[%clk
00:03:01]} {[%emt 00:00:04]} g6 {[%clk 00:03:03]} {[%emt 00:00:01]} 3. c4
{[%clk 00:03:02]} {[%emt 00:00:01]} Bg7 {[%clk 00:03:01]} {[%emt 00:00:04]} 4.
Nc3 {[%clk 00:03:03]} O-O {[%clk 00:03:00]} {[%emt 00:00:03]} 5. e4 {[%clk
00:03:04]} d6 {[%clk 00:03:01]} {[%emt 00:00:02]} 6. Be2 {[%clk 00:03:05]} Bg4
{[%clk 00:03:01]} {[%emt 00:00:02]} 7. Be3 {[%clk 00:03:00]} {[%emt 00:00:07]}
Nfd7 {[%clk 00:03:01]} {[%emt 00:00:01]} 8. Rc1 {[%clk 00:02:57]} {[%emt
00:00:05]} e5 {[%clk 00:03:01]} {[%emt 00:00:02]} 9. dxe5 {[%clk 00:02:48]}
{[%emt 00:00:12]} dxe5 {[%clk 00:02:55]} {[%emt 00:00:08]} 10. O-O {[%clk
00:02:43]} {[%emt 00:00:07]} Nc6 {[%clk 00:02:33]} {[%emt 00:00:24]} 11. a3
{[%clk 00:02:32]} {[%emt 00:00:13]} Bxf3 {[%clk 00:02:26]} {[%emt 00:00:09]} 12.
Bxf3 {[%clk 00:02:32]} {[%emt 00:00:02]} Nd4 {[%clk 00:02:26]} {[%emt
00:00:01]} 13. Bg4 {[%clk 00:02:27]} {[%emt 00:00:07]} Nf6 {[%clk 00:02:19]}
{[%emt 00:00:09]} 14. Bh3 {[%clk 00:02:19]} {[%emt 00:00:10]} c6 {[%clk
00:02:17]} {[%emt 00:00:05]} 15. f4 {[%clk 00:02:04]} {[%emt 00:00:17]} Nh5
{[%clk 00:02:09]} {[%emt 00:00:09]} 16. fxe5 {[%clk 00:01:37]} {[%emt
00:00:30]} Bxe5 {[%clk 00:02:05]} {[%emt 00:00:06]} 17. Ne2 {[%clk 00:01:30]}
{[%emt 00:00:08]} Nxe2+ {[%clk 00:01:19]} {[%emt 00:00:48]} 18. Qxe2 {[%clk
00:01:31]} {[%emt 00:00:01]} Qc7 {[%clk 00:01:13]} {[%emt 00:00:08]} 19. g3
{[%clk 00:01:16]} {[%emt 00:00:17]} Rad8 {[%clk 00:01:14]} 20. Rcd1 {[%clk
00:01:16]} {[%emt 00:00:02]} c5 {[%clk 00:00:49]} {[%emt 00:00:28]} 21. Rd5
{[%clk 00:01:14]} {[%emt 00:00:04]} b6 {[%clk 00:00:46]} {[%emt 00:00:05]} 22.
Rfd1 {[%clk 00:01:11]} {[%emt 00:00:05]} Nf6 {[%clk 00:00:45]} {[%emt
00:00:03]} 23. Rxd8 {[%clk 00:00:45]} {[%emt 00:00:28]} Rxd8 {[%clk 00:00:46]}
{[%emt 00:00:01]} 24. Rxd8+ {[%clk 00:00:42]} {[%emt 00:00:05]} Qxd8 {[%clk
00:00:47]} {[%emt 00:00:01]} 25. Bg2 {[%clk 00:00:34]} {[%emt 00:00:09]} h5
{[%clk 00:00:47]} {[%emt 00:00:03]} 26. Bf3 {[%clk 00:00:35]} {[%emt 00:00:02]}
Bd4 {[%clk 00:00:38]} {[%emt 00:00:11]} 27. Kg2 {[%clk 00:00:34]} {[%emt
00:00:02]} Qd6 {[%clk 00:00:35]} {[%emt 00:00:05]} 28. Bg5 {[%clk 00:00:29]}
{[%emt 00:00:07]} Nd7 {[%clk 00:00:34]} {[%emt 00:00:03]} 29. Bf4 {[%clk
00:00:20]} {[%emt 00:00:10]} Be5 {[%clk 00:00:32]} {[%emt 00:00:04]} 30. Bc1
{[%clk 00:00:05]} {[%emt 00:00:17]} Nb8 {[%clk 00:00:31]} {[%emt 00:00:03]} 31.
Qd1 {[%clk 00:00:04]} {[%emt 00:00:03]} Qe7 {[%clk 00:00:26]} {[%emt 00:00:07]}
32. Qd5 {[%clk 00:00:05]} {[%emt 00:00:02]} Nd7 {[%clk 00:00:25]} {[%emt
00:00:03]} 33. Bg5 {[%clk 00:00:04]} {[%emt 00:00:03]} Nf6 {[%emt 00:00:14]} 34.
Bxf6 {[%clk 00:00:03]} Qxf6 {[%clk 00:00:14]} {[%emt 00:00:03]} 35. Qa8+ {[%clk
00:00:04]} {[%emt 00:00:02]} Kg7 {[%clk 00:00:14]} 36. Qxa7 {[%clk 00:00:05]}
Bxb2 {[%clk 00:00:11]} {[%emt 00:00:06]} 37. a4 {[%clk 00:00:07]} Bc3 {[%clk
00:00:09]} {[%emt 00:00:04]} 38. Qd7 {[%clk 00:00:07]} {[%emt 00:00:02]} Ba5
{[%clk 00:00:07]} {[%emt 00:00:04]} 39. h4 {[%clk 00:00:08]} {[%emt 00:00:01]}
Qb2+ {[%clk 00:00:07]} {[%emt 00:00:02]} 40. Kh3 {[%clk 00:00:09]} {[%emt
00:00:01]} Qc3 {[%clk 00:00:08]} {[%emt 00:00:01]} 41. Bg2 {[%clk 00:00:08]}
{[%emt 00:00:03]} Qxc4 {[%clk 00:00:08]} {[%emt 00:00:01]} 42. Qd5 {[%clk
00:00:08]} {[%emt 00:00:01]} Qc3 {[%clk 00:00:08]} {[%emt 00:00:03]} 43. e5
{[%clk 00:00:09]} {[%emt 00:00:01]} Qe3 {[%clk 00:00:08]} {[%emt 00:00:02]} 44.
Qe4 {[%clk 00:00:09]} {[%emt 00:00:02]} Qxe4 {[%clk 00:00:05]} {[%emt
00:00:05]} 45. Bxe4 {[%clk 00:00:09]} {[%emt 00:00:01]} Bc3 {[%clk 00:00:06]}
46. g4 {[%clk 00:00:07]} {[%emt 00:00:04]} hxg4+ {[%emt 00:00:02]} 47. Kxg4
{[%clk 00:00:08]} Bxe5 {[%clk 00:00:07]} {[%emt 00:00:01]} 48. h5 {[%clk
00:00:08]} f5+ {[%emt 00:00:02]} 49. Bxf5 {[%clk 00:00:08]} gxf5+ {[%clk
00:00:10]} {[%emt 00:00:01]} 50. Kxf5 {[%clk 00:00:09]} Bc3 {[%clk 00:00:11]}
51. Ke4 {[%clk 00:00:10]} Kh6 {[%clk 00:00:12]} {[%emt 00:00:01]} 52. Kd5
{[%clk 00:00:11]} Ba5 {[%clk 00:00:13]} 0-1

[Event "IV Pullman Blitz 2022"]
[Site "Riga, Latvia"]
[Date "2022.02.20"]
[Round "3.4"]
[White "Semjonovs, Ilja"]
[Black "Krustkalns, Kristaps"]
[Result "0-1"]
[TimeControl "180+2"]
[WhiteTitle "FM"]
[BlackTitle "FM"]
[WhiteElo "2138"]
[BlackElo "1974"]

1. d4 {[%clk 00:03:03]} {[%emt 00:06:07]} f5 {[%clk 00:03:01]} {[%emt
00:00:03]} 2. Nf3 {[%clk 00:03:04]} {[%emt 00:00:02]} Nf6 {[%clk 00:03:01]}
{[%emt 00:00:01]} 3. Bg5 {[%clk 00:03:04]} {[%emt 00:00:02]} e6 {[%clk
00:03:00]} {[%emt 00:00:03]} 4. e3 {[%clk 00:03:02]} {[%emt 00:00:04]} d5
{[%clk 00:02:53]} {[%emt 00:00:09]} 5. Bxf6 {[%clk 00:02:57]} {[%emt 00:00:07]}
Qxf6 {[%clk 00:02:53]} {[%emt 00:00:02]} 6. Ne5 {[%clk 00:02:43]} {[%emt
00:00:16]} Bd6 {[%clk 00:02:53]} {[%emt 00:00:02]} 7. f4 {[%clk 00:02:39]}
{[%emt 00:00:06]} O-O {[%clk 00:02:52]} {[%emt 00:00:02]} 8. Bd3 {[%clk
00:02:24]} {[%emt 00:00:18]} b6 {[%clk 00:02:52]} {[%emt 00:00:02]} 9. Qe2
{[%clk 00:02:16]} {[%emt 00:00:10]} a5 {[%clk 00:02:47]} {[%emt 00:00:07]} 10.
Nd2 {[%clk 00:02:00]} {[%emt 00:00:17]} Qh4+ {[%clk 00:02:48]} {[%emt
00:00:02]} 11. g3 {[%clk 00:01:52]} {[%emt 00:00:11]} Qe7 {[%clk 00:02:48]}
{[%emt 00:00:01]} 12. Ndf3 {[%clk 00:01:16]} {[%emt 00:00:38]} c5 {[%clk
00:02:48]} {[%emt 00:00:02]} 13. c3 {[%clk 00:01:09]} {[%emt 00:00:09]} Nd7
{[%clk 00:02:12]} {[%emt 00:00:37]} 14. O-O {[%clk 00:00:48]} {[%emt 00:00:24]}
Nf6 {[%clk 00:02:12]} {[%emt 00:00:02]} 15. Rfd1 {[%clk 00:00:43]} {[%emt
00:00:07]} Bd7 {[%clk 00:02:08]} {[%emt 00:00:06]} 16. c4 {[%clk 00:00:29]}
{[%emt 00:00:17]} Rab8 {[%clk 00:01:46]} {[%emt 00:00:24]} 17. Rac1 {[%clk
00:00:19]} {[%emt 00:00:12]} dxc4 {[%clk 00:01:39]} {[%emt 00:00:09]} 18. Bxc4
{[%clk 00:00:19]} {[%emt 00:00:03]} b5 {[%clk 00:01:40]} {[%emt 00:00:01]} 19.
dxc5 {[%clk 00:00:09]} {[%emt 00:00:11]} Bxc5 {[%clk 00:01:35]} {[%emt
00:00:07]} 20. Nxd7 {[%clk 00:00:08]} {[%emt 00:00:04]} Nxd7 {[%clk 00:01:30]}
{[%emt 00:00:07]} 21. Bxb5 {[%clk 00:00:07]} {[%emt 00:00:04]} Bxe3+ {[%clk
00:00:55]} {[%emt 00:00:36]} 22. Qxe3 {[%clk 00:00:08]} {[%emt 00:00:02]} Rxb5
{[%clk 00:00:56]} 23. Rc7 {[%clk 00:00:08]} {[%emt 00:00:02]} Rd8 {[%clk
00:00:47]} {[%emt 00:00:12]} 24. Ne5 {[%emt 00:00:08]} Rd5 {[%clk 00:00:41]}
{[%emt 00:00:06]} 25. Rxd5 {[%emt 00:00:04]} exd5 {[%emt 00:00:01]} 26. Qa7
{[%emt 00:00:02]} 0-1